fUST/lending_fUST_20251201
["ID","MTS","AMOUNT","RATE_DAILY","PERIOD"]
[395201605,1764539449793,-500.0,0.00013698,2]
[395201606,1764539449802,-500.0,0.00013698,2]
[395201607,1764539449812,-3711.16,0.00013698,2]
[395201608,1764539449821,-500.0,0.00013698,2]
[395201609,1764539449831,-500.0,0.00013698,2]
[395201610,1764539449840,-500.0,0.00013698,2]
[395201611,1764539449849,-500.0,0.00013698,2]
[395201612,1764539449858,-636.43091675,0.00013698,2]
[395201613,1764539449868,-500.0,0.00013698,2]
[395201614,1764539449877,-500.0,0.00013698,2]
[395201615,1764539449887,-500.0,0.00013698,2]
[395201616,1764539449897,-551.81330843,0.00013698,2]
[395201617,1764539449907,-500.0,0.00013698,2]
[395201618,1764539449916,-2195.97,0.00013698,2]
[395201619,1764539449930,-500.0,0.00013698,2]
[395201620,1764539449939,-500.0,0.00013698,2]
[395201621,1764539449948,-500.0,0.00013698,2]
[395201622,1764539449957,-2285.1,0.00013698,2]
[395201623,1764539449968,-500.0,0.00013698,2]
[395201624,1764539449977,-500.0,0.00013698,2]
[395201625,1764539449987,-701.35,0.00013698,2]
[395201626,1764539449996,-500.0,0.00013698,2]
[395201627,1764539450005,-490.01400426,0.00013698,2]
[395201628,1764539450014,-500.0,0.00013698,2]
[395201629,1764539450023,-500.0,0.00013698,2]
[395201630,1764539450032,-500.0,0.00013698,2]
[395201631,1764539450041,-500.0,0.00013698,2]
[395201632,1764539450051,-500.0,0.00013698,2]
[395201633,1764539450061,-500.0,0.00013698,2]
[395201634,1764539450070,-500.0,0.00013698,2]
[395201635,1764539450082,-510.42013348,0.00013698,2]
[395201636,1764539450093,-1000.35,0.00013698,2]
[395201637,1764539450103,-500.0,0.00013698,2]
[395201638,1764539450113,-500.0,0.00013698,2]
[395201639,1764539450124,-406.46073617,0.00013698,2]
[395201640,1764539450133,-1181.55,0.00013698,2]
[395201641,1764539450144,-500.0,0.00013698,2]
[395201642,1764539450153,-500.0,0.00013698,2]
[395201643,1764539450163,-552.52,0.00013698,2]
[395201644,1764539450174,-500.0,0.00013698,2]
[395201645,1764539450184,-1999.31,0.00013698,2]
[395201646,1764539450194,-500.0,0.00013698,2]
[395201647,1764539450203,-162.77238348,0.00013698,2]
[395201648,1764539450213,-500.0,0.00013698,2]
[395201649,1764539450223,-500.0,0.00013698,2]
[395201650,1764539450232,-500.0,0.00013698,2]
[395201651,1764539450243,-500.0,0.00013698,2]
[395201652,1764539450252,-500.0,0.00013698,2]
[395201653,1764539450263,-500.0,0.00013698,2]
[395201654,1764539450274,-500.0,0.00013698,2]
[395201655,1764539450283,-500.0,0.00013698,2]
[395201656,1764539450292,-704.81,0.00013698,2]
[395201657,1764539450302,-500.0,0.00013698,2]
[395201658,1764539450313,-5940.84,0.00013698,2]
[395201659,1764539450322,-1427.71,0.00013698,2]
[395201660,1764539450332,-500.0,0.00013698,2]
[395201661,1764539450341,-3330.8,0.00013698,2]
[395201662,1764539450350,-2605.02,0.00013698,2]
[395201663,1764539450359,-2352.7,0.00013698,2]
[395201664,1764539450368,-206.8182899,0.00013698,2]
[395201665,1764539450378,-500.0,0.00013698,2]
[395201666,1764539450390,-500.0,0.00013698,2]
[395201667,1764539450399,-151.0,0.00013698,2]
[395201668,1764539450409,-151.0,0.00013698,2]
[395201669,1764539450418,-151.0,0.00013698,2]
[395201670,1764539450427,-151.0,0.00013698,2]
[395201671,1764539450437,-216.74005,0.00013698,2]
[395201672,1764539450446,-2686.55,0.00013698,2]
[395201673,1764539450455,-231.42675824,0.00013698,2]
[395201674,1764539450464,-2373.36,0.00013698,2]
[395201675,1764539450474,-500.0,0.00013698,2]
[395201676,1764539450483,-500.0,0.00013698,2]
[395201677,1764539450492,-1276.45,0.00013698,2]
[395201678,1764539450502,-345.06049772,0.00013698,2]
[395201679,1764539450511,-538.37,0.00013698,2]
[395201680,1764539450521,-500.0,0.00013698,2]
[395201681,1764539450530,-659.07,0.00013698,2]
[395201682,1764539450539,-500.0,0.00013698,2]
[395201683,1764539450548,-500.0,0.00013698,2]
[395201684,1764539450558,-5368.21,0.00013698,2]
[395201685,1764539450567,-2451.74,0.00013698,2]
[395201686,1764539450576,-733.54,0.00013698,2]
[395201687,1764539450585,-2539.33,0.00013698,2]
[395201688,1764539450594,-561.69,0.00013698,2]
[395201689,1764539450603,-500.0,0.00013698,2]
[395201690,1764539450612,-500.0,0.00013698,2]
[395201691,1764539450621,-500.0,0.00013698,2]
[395201692,1764539450630,-500.0,0.00013698,2]
[395201693,1764539450639,-500.0,0.00013698,2]
[395201694,1764539450649,-500.0,0.00013698,2]
[395201695,1764539450658,-500.0,0.00013698,2]
[395201696,1764539450667,-500.0,0.00013698,2]
[395201697,1764539450676,-500.0,0.00013698,2]
[395201698,1764539450685,-2870.57,0.00013698,2]
[395201699,1764539450695,-500.0,0.00013698,2]
[395201700,1764539450704,-500.0,0.00013698,2]
[395201701,1764539450713,-1694.8,0.00013698,2]
[395201702,1764539450722,-8714.34,0.00013698,2]
[395201703,1764539450731,-2661.47,0.00013698,2]
[395201704,1764539450740,-1116.89,0.00013698,2]
[395201705,1764539450750,-500.0,0.00013698,2]
[395201706,1764539450759,-500.0,0.00013698,2]
[395201707,1764539450769,-500.0,0.00013698,2]
[395201708,1764539450779,-572.57,0.00013698,2]
[395201709,1764539450787,-1900.9,0.00013698,2]
[395201710,1764539450798,-500.0,0.00013698,2]
[395201711,1764539450808,-6312.74,0.00013698,2]
[395201712,1764539450818,-1493.29,0.00013698,2]
[395201713,1764539450827,-724.12,0.00013698,2]
[395201714,1764539450837,-500.0,0.00013698,2]
[395201715,1764539450848,-998.08,0.00013698,2]
[395201716,1764539450857,-500.0,0.00013698,2]
[395201717,1764539450866,-702.23,0.00013698,2]
[395201718,1764539450875,-500.0,0.00013698,2]
[395201719,1764539450884,-500.0,0.00013698,2]
[395201720,1764539450893,-747.03,0.00013698,2]
[395201721,1764539450903,-723.59,0.00013698,2]
[395201722,1764539450911,-500.0,0.00013698,2]
[395201723,1764539451030,-928.01,0.00013698,2]
[395201724,1764539451041,-500.0,0.00013698,2]
[395201725,1764539451051,-500.0,0.00013698,2]
[395201726,1764539451061,-500.0,0.00013698,2]
[395201727,1764539451071,-2087.58,0.00013698,2]
[395201728,1764539451081,-500.0,0.00013698,2]
[395201729,1764539451091,-2592.94,0.00013698,2]
[395201730,1764539451102,-500.0,0.00013698,2]
[395201731,1764539451112,-500.0,0.00013698,2]
[395201732,1764539451123,-500.0,0.00013698,2]
[395201733,1764539451132,-500.0,0.00013698,2]
[395201734,1764539451141,-500.0,0.00013698,2]
[395201735,1764539451150,-1826.86,0.00013698,2]
[395201736,1764539451159,-500.0,0.00013698,2]
[395201737,1764539451168,-959.17,0.00013698,2]
[395201738,1764539451177,-1841.69,0.00013698,2]
[395201739,1764539451186,-777.14,0.00013698,2]
[395201740,1764539451195,-500.0,0.00013698,2]
[395201741,1764539451204,-500.0,0.00013698,2]
[395201742,1764539451213,-500.0,0.00013698,2]
[395201743,1764539451222,-500.0,0.00013698,2]
[395201744,1764539451232,-20677.47,0.00013698,2]
[395201745,1764539451241,-657.64,0.00013698,2]
[395201746,1764539451250,-1543.27,0.00013698,2]
[395201747,1764539451259,-500.0,0.00013698,2]
[395201748,1764539451268,-500.0,0.00013698,2]
[395201749,1764539451277,-500.0,0.00013698,2]
[395201750,1764539451287,-1416.04,0.00013698,2]
[395201751,1764539451296,-500.0,0.00013698,2]
[395201752,1764539451305,-6306.35,0.00013698,2]
[395201753,1764539451314,-1990.16,0.00013698,2]
[395201754,1764539451323,-500.0,0.00013698,2]
[395201755,1764539451332,-2732.07,0.00013698,2]
[395201756,1764539451341,-500.0,0.00013698,2]
[395201757,1764539451350,-500.0,0.00013698,2]
[395201758,1764539451359,-500.0,0.00013698,2]
[395201759,1764539451368,-500.0,0.00013698,2]
[395201760,1764539451378,-2378.44,0.00013698,2]
[395201761,1764539451387,-500.0,0.00013698,2]
[395201762,1764539451397,-500.0,0.00013698,2]
[395201763,1764539451407,-500.0,0.00013698,2]
[395201764,1764539451416,-2787.32,0.00013698,2]
[395201765,1764539451428,-733.63,0.00013698,2]
[395201766,1764539451438,-522.63,0.00013698,2]
[395201767,1764539451448,-7250.7,0.00013698,2]
[395201768,1764539451459,-605.9,0.00013698,2]
[395201769,1764539451470,-739.8,0.00013698,2]
[395201770,1764539451479,-252.00941987,0.00013698,2]
[395201771,1764539451488,-500.0,0.00013698,2]
[395201772,1764539451498,-695.28,0.00013698,2]
[395201773,1764539451507,-3091.14,0.00013698,2]
[395201774,1764539451516,-1343.09,0.00013698,2]
[395201775,1764539451526,-500.0,0.00013698,2]
[395201776,1764539451535,-500.0,0.00013698,2]
[395201777,1764539451544,-2651.6,0.00013698,2]
[395201778,1764539451554,-500.0,0.00013698,2]
[395201779,1764539451564,-500.0,0.00013698,2]
[395201780,1764539451573,-500.0,0.00013698,2]
[395201781,1764539451583,-500.0,0.00013698,2]
[395201782,1764539451594,-500.0,0.00013698,2]
[395201783,1764539451603,-500.0,0.00013698,2]
[395201784,1764539451612,-500.0,0.00013698,2]
[395201785,1764539451622,-500.0,0.00013698,2]
[395201786,1764539451631,-270.03107429,0.00013698,2]
[395201787,1764539451640,-542.98,0.00013698,2]
[395201788,1764539451652,-500.0,0.00013698,2]
[395201789,1764539451661,-607.96757915,0.00013698,2]
[395201790,1764539451671,-500.0,0.00013698,2]
[395201791,1764539451680,-500.0,0.00013698,2]
[395201792,1764539451689,-500.0,0.00013698,2]
[395201793,1764539451698,-500.0,0.00013698,2]
[395201794,1764539451707,-500.0,0.00013698,2]
[395201795,1764539451715,-500.0,0.00013698,2]
[395201796,1764539451724,-500.0,0.00013698,2]
[395201797,1764539451733,-1346.63,0.00013698,2]
[395201798,1764539451743,-500.0,0.00013698,2]
[395201799,1764539451751,-262.34135342,0.00013698,2]
[395201800,1764539451760,-500.0,0.00013698,2]
[395201801,1764539451769,-13266.56,0.00013698,2]
[395201802,1764539451779,-1185.54,0.00013698,2]
[395201803,1764539451788,-500.0,0.00013698,2]
[395201804,1764539451797,-500.0,0.00013698,2]
[395201805,1764539451806,-259.62391719,0.00013698,2]
[395201806,1764539451815,-1500.0,0.00013699,2]
[395201807,1764539451825,-1000.0,0.00013699,2]
[395201808,1764539451835,-497.939995,0.00013699,2]
[395201809,1764539451844,-500.0,0.00013699,2]
[395201810,1764539451856,-500.0,0.00013699,2]
[395201811,1764539451866,-500.0,0.00013699,2]
[395201812,1764539451876,-500.0,0.00013699,2]
[395201813,1764539451887,-500.0,0.00013699,2]
[395201814,1764539451897,-500.73644516,0.00013699,2]
[395201815,1764539451907,-500.0,0.00013699,2]
[395201816,1764539451916,-500.22081942,0.00013699,2]
[395201817,1764539451931,-246.78440016,0.00013699,2]
[395201818,1764539451940,-500.0,0.00013699,2]
[395201819,1764539451950,-500.0,0.00013699,2]
[395201820,1764539451959,-500.0,0.00013699,2]
[395201821,1764539451969,-501.07357451,0.00013699,2]
[395201822,1764539451978,-500.0,0.00013699,2]
[395201823,1764539451989,-345.29255607,0.00013699,2]
[395201824,1764539451998,-500.19519281,0.00013699,2]
[395201825,1764539452008,-500.0,0.00013699,2]
[395201826,1764539452019,-500.7628375,0.00013699,2]
[395201827,1764539452029,-500.0,0.00013699,2]
[395201828,1764539452039,-554.95919466,0.00013699,2]
[395201829,1764539452049,-500.0,0.00013699,2]
[395201830,1764539452059,-500.57194338,0.00013699,2]
[395201831,1764539452070,-275.87016897,0.00013699,2]
[395201832,1764539452080,-500.18722646,0.00013699,2]
[395201833,1764539452089,-500.0,0.00013699,2]
[395201834,1764539452099,-500.0,0.00013699,2]
[395201835,1764539452108,-500.53883743,0.00013699,2]
[395201836,1764539452117,-384.8002092,0.00013699,2]
[395201837,1764539452127,-500.48542157,0.00013699,2]
[395201838,1764539452136,-500.0,0.00013699,2]
[395201839,1764539452146,-500.0,0.00013699,2]
[395201840,1764539452155,-500.0,0.00013699,2]
[395201841,1764539452164,-500.0,0.00013699,2]
[395201842,1764539452173,-500.20663065,0.00013699,2]
[395201843,1764539452183,-500.0,0.00013699,2]
[395201844,1764539452192,-500.0,0.00013699,2]
[395201845,1764539452202,-500.0,0.00013699,2]
[395201846,1764539452211,-500.0,0.00013699,2]
[395201847,1764539452220,-523.09986311,0.00013699,2]
[395201848,1764539452230,-501.25054627,0.00013699,2]
[395201849,1764539452239,-500.0,0.00013699,2]
[395201850,1764539452248,-500.0,0.00013699,2]
[395201851,1764539452257,-2000.0,0.00013707,3]
[395201852,1764539452268,-2000.0,0.00013715,3]
[395201853,1764539452278,-2000.0,0.00013724,3]
[395201854,1764539452289,-2000.0,0.00013733,3]
[395201855,1764539452299,-2000.0,0.00013742,3]
[395201856,1764539452310,-2000.0,0.00013751,3]
[395201857,1764539452319,-2000.0,0.00013759,3]
[395201858,1764539452328,-2000.0,0.00013768,3]
[395201859,1764539452337,-2000.0,0.00013777,3]
[395201860,1764539452346,-2000.0,0.00013786,3]
[395201861,1764539452355,-2000.0,0.00013795,3]
[395201862,1764539452364,-2000.0,0.00013803,3]
[395201863,1764539452373,-2000.0,0.00013812,3]
[395201864,1764539452383,-1000.0,0.00013821,2]
[395201865,1764539452394,-1000.0,0.00013821,2]
[395201866,1764539452403,-1000.0,0.00013821,2]
[395201867,1764539452413,-519.85464239,0.00013821,2]
[395201868,1764539452423,-1000.0,0.00013821,2]
[395201869,1764539452433,-1000.0,0.00013821,2]
[395201870,1764539452444,-1114.38307419,0.00013821,2]
[395201871,1764539452453,-914.63033075,0.00013821,2]
[395201872,1764539452462,-1000.0,0.00013821,2]
[395201873,1764539452471,-951.81647885,0.00013821,2]
[395201874,1764539452482,-898.64260899,0.00013821,2]
[395201875,1764539452491,-1000.0,0.00013821,2]
[395201876,1764539452500,-1000.0,0.00013821,2]
[395201877,1764539452510,-1000.0,0.00013821,2]
[395201878,1764539452520,-2000.0,0.00013821,3]
[395201879,1764539452529,-788.19160245,0.00013821,3]
[395201880,1764539452539,-248.71531821,0.0001396,2]
[395201881,1764539452548,-200.52023199,0.00013971,2]
[395201882,1764539452557,-200.0,0.00013971,2]
[395201883,1764539452566,-200.0,0.00013971,2]
[395201884,1764539452576,-1284.87627585,0.00013972,2]
[395201885,1764539452585,-500.0,0.00013972,2]
[395201886,1764539452594,-500.0,0.00013972,2]
[395201887,1764539452603,-489.92539287,0.00013972,2]
[395201888,1764539452613,-500.0,0.00013972,2]
[395201889,1764539452622,-500.0,0.00013972,2]
[395201890,1764539452631,-500.0,0.00013972,2]
[395201891,1764539452640,-500.0,0.00013972,2]
[395201892,1764539452649,-500.0,0.00013972,2]
[395201893,1764539452658,-500.0,0.00013972,2]
[395201894,1764539452667,-500.0,0.00013972,2]
[395201895,1764539452676,-500.0,0.00013972,2]
[395201896,1764539452685,-500.0,0.00013972,2]
[395201897,1764539452697,-500.0,0.00013972,2]
[395201898,1764539452706,-500.0,0.00013972,2]
[395201899,1764539452715,-500.0,0.00013972,2]
[395201900,1764539452724,-500.0,0.00013972,2]
[395201901,1764539452734,-500.0,0.00013972,2]
[395201902,1764539452743,-203.35277891,0.00013972,2]
[395201903,1764539452752,-500.0,0.00013972,2]
[395201904,1764539452760,-737.33,0.00013972,2]
[395201905,1764539452769,-500.0,0.00013972,2]
[395201906,1764539452778,-500.0,0.00013972,2]
[395201907,1764539452787,-194.39285015,0.00013972,2]
[395201908,1764539452796,-500.0,0.00013972,2]
[395201909,1764539452805,-500.0,0.00013972,2]
[395201910,1764539452814,-500.0,0.00013972,2]
[395201911,1764539452824,-757.7,0.00013972,2]
[395201912,1764539452833,-500.0,0.00013972,2]
[395201913,1764539452842,-500.0,0.00013972,2]
[395201914,1764539452851,-500.0,0.00013972,2]
[395201915,1764539452860,-500.0,0.00013972,2]
[395201916,1764539452869,-503.45856096,0.00013972,2]
[395201917,1764539452878,-500.0,0.00013972,2]
[395201918,1764539452996,-500.0,0.00013972,2]
[395201919,1764539453008,-500.0,0.00013972,2]
[395201920,1764539453017,-500.0,0.00013972,2]
[395201921,1764539453026,-500.0,0.00013972,2]
[395201922,1764539453035,-500.0,0.00013972,2]
[395201923,1764539453045,-500.0,0.00013972,2]
[395201924,1764539453055,-500.0,0.00013972,2]
[395201925,1764539453065,-518.9,0.00013972,2]
[395201926,1764539453075,-500.0,0.00013972,2]
[395201927,1764539453084,-500.0,0.00013972,2]
[395201928,1764539453094,-500.0,0.00013972,2]
[395201929,1764539453103,-614.32,0.00013972,2]
[395201930,1764539453113,-500.0,0.00013972,2]
[395201931,1764539453122,-500.0,0.00013972,2]
[395201932,1764539453132,-500.0,0.00013972,2]
[395201933,1764539453141,-500.0,0.00013972,2]
[395201934,1764539453151,-500.0,0.00013972,2]
[395201935,1764539453160,-500.0,0.00013972,2]
[395201936,1764539453170,-500.0,0.00013972,2]
[395201937,1764539453180,-500.0,0.00013972,2]
[395201938,1764539453189,-734.65,0.00013972,2]
[395201939,1764539453199,-500.0,0.00013972,2]
[395201940,1764539453208,-500.0,0.00013972,2]
[395201941,1764539453218,-500.0,0.00013972,2]
[395201942,1764539453228,-500.0,0.00013972,2]
[395201943,1764539453238,-1541.93,0.00013972,2]
[395201944,1764539453248,-500.0,0.00013972,2]
[395201945,1764539453257,-500.0,0.00013972,2]
[395201946,1764539453267,-500.0,0.00013972,2]
[395201947,1764539453277,-500.0,0.00013972,2]
[395201948,1764539453287,-982.38,0.00013972,2]
[395201949,1764539453296,-500.0,0.00013972,2]
[395201950,1764539453306,-559.63471592,0.00013972,2]
[395201951,1764539453317,-500.0,0.00013972,2]
[395201952,1764539453327,-500.0,0.00013972,2]
[395201953,1764539453336,-500.0,0.00013972,2]
[395201954,1764539453346,-533.6250484,0.00013972,2]
[395201955,1764539453355,-500.0,0.00013972,2]
[395201956,1764539453365,-500.0,0.00013972,2]
[395201957,1764539453375,-500.0,0.00013972,2]
[395201958,1764539453384,-500.0,0.00013972,2]
[395201959,1764539453394,-500.0,0.00013972,2]
[395201960,1764539453404,-500.0,0.00013972,2]
[395201961,1764539453413,-500.0,0.00013972,2]
[395201962,1764539453423,-528.76241882,0.00013972,2]
[395201963,1764539453434,-500.0,0.00013972,2]
[395201964,1764539453444,-542.75,0.00013972,2]
[395201965,1764539453454,-500.0,0.00013972,2]
[395201966,1764539453464,-500.0,0.00013972,2]
[395201967,1764539453474,-500.0,0.00013972,2]
[395201968,1764539453483,-500.0,0.00013972,2]
[395201969,1764539453493,-500.0,0.00013972,2]
[395201970,1764539453503,-500.0,0.00013972,2]
[395201971,1764539453512,-500.0,0.00013972,2]
[395201972,1764539453522,-500.0,0.00013972,2]
[395201973,1764539453532,-379.29518063,0.00013972,2]
[395201974,1764539453541,-500.0,0.00013972,2]
[395201975,1764539453551,-500.0,0.00013972,2]
[395201976,1764539453561,-500.0,0.00013972,2]
[395201977,1764539453571,-500.0,0.00013972,2]
[395201978,1764539453581,-500.0,0.00013972,2]
[395201979,1764539453591,-500.0,0.00013972,2]
[395201980,1764539453601,-500.0,0.00013972,2]
[395201981,1764539453611,-500.0,0.00013972,2]
[395201982,1764539453621,-500.0,0.00013972,2]
[395201983,1764539453630,-213.52554072,0.00013972,2]
[395201984,1764539453640,-500.0,0.00013972,2]
[395201985,1764539453650,-500.0,0.00013972,2]
[395201986,1764539453659,-500.0,0.00013972,2]
[395201987,1764539453669,-500.0,0.00013972,2]
[395201988,1764539453679,-500.0,0.00013972,2]
[395201989,1764539453688,-500.0,0.00013972,2]
[395201990,1764539453698,-500.0,0.00013972,2]
[395201991,1764539453707,-500.0,0.00013972,2]
[395201992,1764539453717,-500.0,0.00013972,2]
[395201993,1764539453727,-500.0,0.00013972,2]
[395201994,1764539453736,-502.00986402,0.00013972,2]
[395201995,1764539453746,-500.0,0.00013972,2]
[395201996,1764539453757,-500.0,0.00013972,2]
[395201997,1764539453766,-500.0,0.00013972,2]
[395201998,1764539453776,-500.0,0.00013972,2]
[395201999,1764539453786,-500.0,0.00013972,2]
[395202000,1764539453795,-500.0,0.00013972,2]
[395202001,1764539453804,-500.0,0.00013972,2]
[395202002,1764539453814,-501.85952338,0.00013972,2]
[395202003,1764539453823,-500.0,0.00013972,2]
[395202004,1764539453833,-500.0,0.00013972,2]
[395202005,1764539453842,-500.0,0.00013972,2]
[395202006,1764539453852,-1618.44,0.00013972,2]
[395202007,1764539453862,-500.0,0.00013972,2]
[395202008,1764539453872,-500.0,0.00013972,2]
[395202009,1764539453882,-500.0,0.00013972,2]
[395202010,1764539453892,-500.0,0.00013972,2]
[395202011,1764539453901,-500.0,0.00013972,2]
[395202012,1764539453911,-500.0,0.00013972,2]
[395202013,1764539453920,-873.82,0.00013972,2]
[395202014,1764539453936,-500.0,0.00013972,2]
[395202015,1764539453946,-500.0,0.00013972,2]
[395202016,1764539453956,-537.62,0.00013972,2]
[395202017,1764539453967,-500.0,0.00013972,2]
[395202018,1764539453977,-500.0,0.00013972,2]
[395202019,1764539453986,-500.0,0.00013972,2]
[395202020,1764539453996,-500.0,0.00013972,2]
[395202021,1764539454008,-500.0,0.00013972,2]
[395202022,1764539454018,-500.0,0.00013972,2]
[395202023,1764539454027,-500.0,0.00013972,2]
[395202024,1764539454036,-500.0,0.00013972,2]
[395202025,1764539454046,-500.0,0.00013972,2]
[395202026,1764539454055,-500.0,0.00013972,2]
[395202027,1764539454064,-500.0,0.00013972,2]
[395202028,1764539454074,-500.0,0.00013972,2]
[395202029,1764539454083,-994.55,0.00013972,2]
[395202030,1764539454092,-500.0,0.00013972,2]
[395202031,1764539454101,-500.0,0.00013972,2]
[395202032,1764539454110,-500.0,0.00013972,2]
[395202033,1764539454119,-500.0,0.00013972,2]
[395202034,1764539454128,-500.0,0.00013972,2]
[395202035,1764539454137,-675.76,0.00013972,2]
[395202036,1764539454146,-500.0,0.00013972,2]
[395202037,1764539454155,-500.0,0.00013972,2]
[395202038,1764539454165,-500.0,0.00013972,2]
[395202039,1764539454174,-598.4,0.00013972,2]
[395202040,1764539454183,-1000.0,0.00013972,2]
[395202041,1764539454192,-500.0,0.00013972,2]
[395202042,1764539454202,-500.0,0.00013972,2]
[395202043,1764539454211,-500.0,0.00013972,2]
[395202044,1764539454220,-500.0,0.00013972,2]
[395202045,1764539454229,-269.46862469,0.00013972,2]
[395202046,1764539454239,-500.0,0.00013972,2]
[395202047,1764539454247,-500.0,0.00013972,2]
[395202048,1764539454256,-500.0,0.00013972,2]
[395202049,1764539454265,-500.0,0.00013972,2]
[395202050,1764539454274,-500.0,0.00013972,2]
[395202051,1764539454282,-500.0,0.00013972,2]
[395202052,1764539454291,-500.0,0.00013972,2]
[395202053,1764539454301,-500.0,0.00013972,2]
[395202054,1764539454310,-500.0,0.00013972,2]
[395202055,1764539454319,-500.0,0.00013972,2]
[395202056,1764539454327,-500.0,0.00013972,2]
[395202057,1764539454336,-500.0,0.00013972,2]
[395202058,1764539454345,-500.0,0.00013972,2]
[395202059,1764539454354,-500.0,0.00013972,2]
[395202060,1764539454364,-500.0,0.00013972,2]
[395202061,1764539454372,-513.83,0.00013972,2]
[395202062,1764539454381,-500.0,0.00013972,2]
[395202063,1764539454390,-500.0,0.00013972,2]
[395202064,1764539454399,-500.0,0.00013972,2]
[395202065,1764539454409,-500.0,0.00013972,2]
[395202066,1764539454419,-500.0,0.00013972,2]
[395202067,1764539454427,-500.0,0.00013972,2]
[395202068,1764539454437,-500.0,0.00013972,2]
[395202069,1764539454445,-500.0,0.00013972,2]
[395202070,1764539454454,-500.0,0.00013972,2]
[395202071,1764539454464,-500.0,0.00013972,2]
[395202072,1764539454473,-500.0,0.00013972,2]
[395202073,1764539454483,-502.88243515,0.00013972,2]
[395202074,1764539454492,-500.0,0.00013972,2]
[395202075,1764539454501,-500.0,0.00013972,2]
[395202076,1764539454510,-500.0,0.00013972,2]
[395202077,1764539454519,-1732.58,0.00013972,2]
[395202078,1764539454528,-500.0,0.00013972,2]
[395202079,1764539454537,-500.0,0.00013972,2]
[395202080,1764539454546,-472.83457091,0.00013972,2]
[395202081,1764539454555,-500.0,0.00013972,2]
[395202082,1764539454565,-2217.36,0.00013972,2]
[395202083,1764539454574,-670.74,0.00013972,2]
[395202084,1764539454583,-500.0,0.00013972,2]
[395202085,1764539454593,-500.0,0.00013972,2]
[395202086,1764539454602,-568.48798988,0.00013972,2]
[395202087,1764539454611,-500.0,0.00013972,2]
[395202088,1764539454621,-500.0,0.00013972,2]
[395202089,1764539454630,-500.0,0.00013972,2]
[395202090,1764539454639,-500.0,0.00013972,2]
[395202091,1764539454648,-500.0,0.00013972,2]
[395202092,1764539454657,-580.88,0.00013972,2]
[395202093,1764539454667,-1367.15,0.00013972,2]
[395202094,1764539454676,-810.32,0.00013972,2]
[395202095,1764539454685,-500.0,0.00013972,2]
[395202096,1764539454695,-1073.42,0.00013972,2]
[395202097,1764539454805,-637.45,0.00013972,2]
[395202098,1764539454814,-500.0,0.00013972,2]
[395202099,1764539454823,-500.0,0.00013972,2]
[395202100,1764539454834,-500.0,0.00013972,2]
[395202101,1764539454845,-500.0,0.00013972,2]
[395202102,1764539454856,-500.0,0.00013972,2]
[395202103,1764539454865,-500.0,0.00013972,2]
[395202104,1764539454876,-500.0,0.00013972,2]